Cogmind - Beta 9.5 @@@ ROGUE MODE // 2020.04.03 @ 19:50:33 Player: Irot Result: Destroyed by H-55 Commando with Assault Rifle Performance ------------- Evolutions (2) 1000 Regions Visited (4) 800 Robots Destroyed (54) 270 Value Destroyed (1257) 1257 Prototype IDs (2) 40 Alien Tech Used (0) 0 Bonus (-32) -32 TOTAL SCORE: 3335 Bonus ------- Follower Combat Kills 110 Friendly Fire -142 Cogmind --------- Core Integrity 0/550 Matter 300/300 Energy 100/100 System Corruption 0% Temperature Cool (0) Movement Core (350) Ox6 Location -8/Materials Parts ------- > --- POWER (1) -------- (None) > --- PROPULSION (2) --- (None) > --- UTILITY (5) ------ Large Storage Unit > --- WEAPON (3) ------- Axe > --- INVENTORY (10) --- Improved Ion Engine Light Nuclear Core Light Nuclear Core Micro Nuclear Core Micro Nuclear Core Micro Nuclear Core Medium Matter Pod (100) Medium Matter Pod (100) Medium Matter Pod (100) Core Shielding Peak State ------------ > --- POWER ------------ Ion Engine > --- PROPULSION ------- Improved Aluminum Leg Improved Aluminum Leg > --- UTILITY ---------- Improved Heat Sink Large Storage Unit Large Storage Unit Core Shielding Light Armor Plating > --- WEAPON ----------- Improved EM Shotgun Plasma Cannon Improved Assault Rifle > --- INVENTORY -------- Ion Engine Ion Engine Improved Ion Engine Light Nuclear Core Micro Nuclear Core Micro Nuclear Core Micro Nuclear Core Micro Nuclear Core Improved Aluminum Leg Improved Aluminum Leg Improved Heat Sink Medium Matter Pod Core Shielding Plasma Cannon Light Assault Rifle Heavy Assault Rifle [Rating: 25] Favorites ----------- Power Light Ion Engine Engine Light Ion Engine Power Core Light Nuclear Core Propulsion Light Treads Treads Light Treads Leg Improved Aluminum Leg Utility Large Storage Unit Device Improved Heat Sink Storage Large Storage Unit Protection Core Shielding Weapon Assault Rifle Energy Gun Improved EM Shotgun Energy Cannon Plasma Cannon Ballistic Gun Assault Rifle Launcher Rocket Launcher Special Weapon Mining Laser Slashing Weapon Axe Special Melee Weapon Datajack Build | -11 -10 -10 -9 -8 ------- Run | Scr Mat Min Mat Mat Slots Evolved 4 | . . . 2 2 Power . | . . . . . Propulsion . | . . . . . Utility 3 | . . . 1 2 Weapon 1 | . . . 1 . Parts Attached 37 | 6 2 . 17 12 Power 6 | 1 . . 4 1 Engine 4 | 1 . . 3 . Core 2 | . . . 1 1 Reactor . | . . . . . Propulsion 6 | 2 . . 2 2 Treads 2 | 2 . . . . Leg 4 | . . . 2 2 Wheel . | . . . . . Hover . | . . . . . Flight . | . . . . . Utility 8 | 1 2 . 2 3 Device 3 | . . . 2 1 Storage 3 | 1 2 . . . Processor . | . . . . . Hackware . | . . . . . Protection 2 | . . . . 2 Artifact . | . . . . . Weapon 17 | 2 . . 9 6 Energy Gun 4 | . . . 4 . Energy Cannon 2 | . . . . 2 Ballistic Gun 7 | 2 . . 2 3 Ballistic Cannon . | . . . . . Launcher 1 | . . . 1 . Special Weapon 1 | . . . 1 . Impact Weapon . | . . . . . Slashing Weapon 1 | . . . . 1 Piercing Weapon . | . . . . . Special Melee Weapon 1 | . . . 1 . Unidentified Prototypes 2 | . . . 2 . Parts Lost 29 | . . . 13 16 Power 6 | . . . 4 2 Propulsion 4 | . . . 1 3 Utility 5 | . . . 1 4 Weapon 14 | . . . 7 7 Highest Loss Streak 13 | . . . 6 13 Average Slot Usage (%) 91 | . 99 100 86 79 Engine 10 | . 14 14 6 6 Treads 16 | . 28 28 9 . Leg 5 | . . . 10 12 Device 3 | . . . 6 6 Storage 24 | . 27 28 22 17 Protection 2 | . . . . 14 Energy Gun 4 | . . . 9 7 Energy Cannon 1 | . . . . 5 Ballistic Gun 20 | . 28 28 17 7 Naked Turns . | . . . . . Heaviest Build 55 | 11 39 39 49 55 Greatest Support 40 | 40 40 40 40 26 Greatest Overweight (x) 14 | 1 . . 1 14 Average Overweight (x) . | . . . . 3 Largest Inventory Capacity 16 | 6 16 16 16 16 Average Capacity 15 | 5 15 16 16 15 Most Carried 16 | 4 10 13 13 16 Average Carried 9 | 1 4 12 9 14 Final Capacity 16 | 6 16 16 16 10 Final Carried 13 | 1 10 13 13 10 Class Distribution -------------------- 67% | Mutant 21% | Gunner 11% | Tank Dominant Class ---------------- Mutant | -10/Materials Mutant | -10/Mines Gunner | -9/Materials Tank | -8/Materials Resources | -11 -10 -10 -9 -8 ----------- Run | Scr Mat Min Mat Mat Matter Collected 1493 | 221 188 139 542 403 Remotely . | . . . . . Salvage Created 1825 | . 269 105 895 556 Parts 114 | . 24 8 50 32 Haulers Intercepted 2 | . . . 1 1 Recyclers Shooed 5 | . 3 . 2 . Parts Field Recycled . | . . . . . Retrieved Matter . | . . . . . Parts Self-Destructed . | . . . . . Prevented . | . . . . . Kills | -11 -10 -10 -9 -8 ------- Run | Scr Mat Min Mat Mat Combat Hostiles Destroyed 32 | . 4 2 17 9 Guns 26 | . 4 2 15 5 Cannons 4 | . . . . 4 AOE 2 | . . . 2 . Classes Destroyed 10 | . 5 1 4 . Worker 4 | . 2 . 1 1 Builder 6 | . . . 3 3 Tunneler 2 | . . 1 . 1 Hauler 2 | . . . 1 1 Recycler 3 | . 2 . 1 . Watcher 4 | . 2 . 1 1 Swarmer 6 | . 3 . . 3 Grunt 21 | . 1 2 13 5 Brawler 1 | . . . 1 . Sentry 4 | . . . 3 1 Thug 1 | . . . 1 . Best Kill Streak 6 | . 5 2 6 6 Combat Bots Only 6 | . 3 2 6 3 Max Kills in Single Turn 2 | . 1 1 2 2 Gunslinging 1 | . . . 1 . Exploded 1 | . . . 1 . Melee . | . . . . . Uniques/NPCs Destroyed . | . . . . . Combat | -11 -10 -10 -9 -8 -------- Run | Scr Mat Min Mat Mat Damage Taken 3961 | . 68 64 1753 2076 Core 762 | . 9 . 196 557 Absorbed by Shields . | . . . . . Core Remaining (%) 82 | 100 . 96 51 . Volleys Fired 136 | . 23 5 59 49 Largest 3 | . 2 2 3 3 Hottest 148 | . 40 40 143 148 Shots Fired 293 | . 46 10 137 100 Gun 241 | . 46 10 127 58 Cannon 42 | . . . . 42 Launcher 8 | . . . 8 . Special 2 | . . . 2 . Kinetic 200 | . 46 10 96 48 Thermal 58 | . . . 16 42 Explosive 8 | . . . 8 . Electromagnetic 27 | . . . 17 10 Robot Hit Streak 16 | . 9 7 16 6 Robot Miss Streak 5 | . 2 3 5 4 Penetration Max . | . . . . . Secondary Targets 3 | . . 1 2 . Max Gunslinging Chain 1 | . . 1 1 . Shots Hit Robots 180 | . 32 7 83 58 Core Hits 90 | . 14 5 46 25 Critical Hits . | . . . . . Critical Kills . | . . . . . Critical Parts Destroyed . | . . . . . Melee Attacks 1 | . . . 1 . Impact . | . . . . . Slashing . | . . . . . Piercing . | . . . . . Sneak Attacks 1 | . . . 1 . Combat Hostiles . | . . . . . Follow-up Attacks . | . . . . . Damage Inflicted 3610 | . 387 102 1793 1328 Guns 2220 | . 387 102 1224 507 Cannons 640 | . . . . 640 Explosions 750 | . . . 569 181 Melee . | . . . . . Ramming . | . . . . . Kinetic 1628 | . 387 102 751 388 Thermal 1057 | . . . 236 821 Explosive 569 | . . . 569 . Electromagnetic 356 | . . . 237 119 Impact . | . . . . . Slashing . | . . . . . Piercing . | . . . . . Highest Corruption 9 | . . . 9 . Average Corruption 8 | . . . 8 . Corruption Purged . | . . . . . Effects 34 | . . . 34 . Message Errors 5 | . . . 5 . Matter Fused 11 | . . . 11 . Heat Flow Errors 2 | . . . 2 . Energy Discharges 1 | . . . 1 . Data Loss (minor) 1 | . . . 1 . Data Loss (major) 3 | . . . 3 . Misfires 2 | . . . 2 . Targeting Errors 6 | . . . 6 . Weapon Failures 3 | . . . 3 . Overload Shots . | . . . . . Overflow Damage 63 | . . . 47 16 Projectiles 12 | . . . . 12 Explosions 51 | . . . 47 4 Melee . | . . . . . Knockbacks . | . . . . . Impact . | . . . . . Kinetic . | . . . . . Secondary . | . . . . . Self-Inflicted Damage 298 | . . . 298 . Shots 7 | . . . 7 . Rammed . | . . . . . Targets Rammed . | . . . . . Kicked . | . . . . . Crushed . | . . . . . Highest Temperature 232 | . . 8 231 232 Average Temperature 62 | . . 3 63 64 Received Heat Transfer 1017 | . 6 39 450 522 Siege Activations . | . . . . . Robots Corrupted . | . . . . . Combat Hostiles . | . . . . . Parts Fried 1 | . . . 1 . Impact Corruptions . | . . . . . Robots Melted . | . . . . . Combat Hostiles . | . . . . . Parts Melted . | . . . . . Heat Transferred 1857 | . . . 407 1450 Parts Sabotaged . | . . . . . Parts Stolen . | . . . . . Parts Stripped . | . . . . . Power Chain Reactions 2 | . . . . 2 Missiles Intercepted . | . . . . . Alert | -11 -10 -10 -9 -8 ------- Run | Scr Mat Min Mat Mat Peak Influence 361 | . 162 63 308 361 Average Influence 101 | . 34 33 168 187 Maximum Alert Level 1 | . . . 1 1 Low Security (%) 79 | 100 100 100 61 50 Level 1 20 | . . . 38 49 Level 2 . | . . . . . Level 3 . | . . . . . Level 4 . | . . . . . Level 5 . | . . . . . High Security . | . . . . . Max Security . | . . . . . Squads Dispatched 10 | . . . 5 5 Investigation 2 | . . . 1 1 Extermination . | . . . . . Reinforcement 8 | . . . 4 4 Assault . | . . . . . Garrison . | . . . . . Intercept . | . . . . . Construction Impeded 4 | . . . 2 2 Haulers Reinforced . | . . . . . Stealth | -11 -10 -10 -9 -8 --------- Run | Scr Mat Min Mat Mat Distress Signals 6 | . 1 . 1 4 Communications Jammed . | . . . . . Distress Signals . | . . . . . Times Spotted 61 | . 11 2 29 19 Peak Tracking Total 5 | . 5 2 5 4 Tactical Retreats 1 | . . . . 1 Traps | -11 -10 -10 -9 -8 ------- Run | Scr Mat Min Mat Mat Traps Triggered 3 | . . . 2 1 Indirectly . | . . . . . Trap Hack Attempts . | . . . . . Triggered . | . . . . . Disarmed . | . . . . . Reprogrammed . | . . . . . Reused . | . . . . . Traps Extracted . | . . . . . Installed . | . . . . . Triggered . | . . . . . Machines | -11 -10 -10 -9 -8 ---------- Run | Scr Mat Min Mat Mat Machines Disabled 2 | . . . 1 1 Max in Single Turn 1 | . . . 1 1 Machines Sabotaged . | . . . . . Garrisons Compromised . | . . . . . Overloaded Fab Kills . | . . . . . Fab Network Shutdowns . | . . . . . Hacking | -11 -10 -10 -9 -8 --------- Run | Scr Mat Min Mat Mat Machines Accessed . | . . . . . Terminals . | . . . . . Fabricators . | . . . . . Repair Stations . | . . . . . Recycling Units . | . . . . . Scanalyzers . | . . . . . Garrison Access . | . . . . . Total Hacks . | . . . . . Successful . | . . . . . Failed . | . . . . . Catastrophic . | . . . . . Database Lockouts . | . . . . . Manual . | . . . . . Terminals . | . . . . . Fabricators . | . . . . . Repair Stations . | . . . . . Recycling Units . | . . . . . Scanalyzers . | . . . . . Garrison Access . | . . . . . Terminal Hacks . | . . . . . Fabricator Hacks . | . . . . . Repair Station Hacks . | . . . . . Recycling Unit Hacks . | . . . . . Scanalyzer . | . . . . . Garrison Access Hacks . | . . . . . Unauthorized Hacks . | . . . . . Terminals . | . . . . . Fabricators . | . . . . . Repair Stations . | . . . . . Recycling Units . | . . . . . Scanalyzers . | . . . . . Garrison Access . | . . . . . Data Cores Recovered . | . . . . . Used . | . . . . . Hacking Detections . | . . . . . Full Trace Events . | . . . . . Feedback Events . | . . . . . Feedback Blocked . | . . . . . Robot Schematics Acquired . | . . . . . Robots Built . | . . . . . Matter . | . . . . . Time . | . . . . . Total Robot Build Rating . | . . . . . Part Schematics Acquired . | . . . . . Parts Built . | . . . . . Matter . | . . . . . Time . | . . . . . Total Part Build Rating . | . . . . . Parts Repaired . | . . . . . Time . | . . . . . Parts Recycled . | . . . . . Recycled Matter . | . . . . . Retrieved Matter . | . . . . . Retrieved Components . | . . . . . Parts Scanalyzed . | . . . . . Part Schematics Acquired . | . . . . . Parts Damaged . | . . . . . Bothacking | -11 -10 -10 -9 -8 ------------ Run | Scr Mat Min Mat Mat Used RIF Installer . | . . . . . Robots Hacked . | . . . . . Non-combat . | . . . . . Combat . | . . . . . Robot Hacks Applied . | . . . . . Relay Couplers Released . | . . . . . Robots Rewired . | . . . . . Allies Hacked . | . . . . . Hacks Repelled . | . . . . . Allies | -11 -10 -10 -9 -8 -------- Run | Scr Mat Min Mat Mat Total Allies 1 | . . 1 . . Largest Group 1 | . . 1 1 . Highest-Rated Group 31 | . . 31 31 . Highest-Rated Ally 31 | . . 31 31 . Total Orders . | . . . . . Ally Attacks 11 | . . . 11 . Total Damage 209 | . . . 209 . Kills 4 | . . . 4 . Allies Corrupted . | . . . . . Allies Melted . | . . . . . Intel | -11 -10 -10 -9 -8 ------- Run | Scr Mat Min Mat Mat Robot Analysis Total . | . . . . . Derelict Logs Recovered . | . . . . . Drone Launches . | . . . . . Drone Recoveries . | . . . . . Exploration | -11 -10 -10 -9 -8 ------------- Run | Scr Mat Min Mat Mat Turns Passed 2746 | 67 627 721 825 506 Spaces Moved 1348 | 44 341 440 377 146 Core 38 | 16 . . . 22 Treads 985 | 28 341 440 176 . Legs 325 | . . . 201 124 Wheels . | . . . . . Hover . | . . . . . Flight . | . . . . . Fastest Speed 50 | 50 160 160 150 150 Average Speed 166 | 125 160 160 160 232 Slowest Speed 750 | 160 160 160 180 750 Overloaded Moves . | . . . . . Propulsion Burnouts . | . . . . . Robots Hopped . | . . . . . Cave-ins Triggered 1 | . . . 1 . Exploration Rate (%) 33 | 4 50 65 26 23 Regions Visited 4 Branch Regions 1 Pre-discovered Areas . | . . . . . Known Exits Taken . | . . . . . Unknown Exits Taken 4 | 1 1 1 1 . Scrap Searched 1 | . . 1 . . Spaces Dug 9 | . . . 9 . Terrain Destroyed 81 | . . . 55 26 Melee . | . . . . . Projectile 14 | . . . 2 12 AOE 67 | . . . 53 14 Actions | -11 -10 -10 -9 -8 --------- Run | Scr Mat Min Mat Mat Total 1576 | 56 378 447 472 223 Wait 3 | . . . . 3 Move 1344 | 43 340 439 376 146 Hop . | . . . . . Pick Up 48 | 7 11 3 17 10 Fast Attach 1 | . . . . 1 Attach 36 | 6 2 . 17 11 Detach 1 | . 1 . . . Swap . | . . . . . Drop 6 | . 1 . 2 3 Fire 136 | . 23 5 59 49 Melee 1 | . . . 1 . Ram . | . . . . . Kick . | . . . . . Crush . | . . . . . Escape Stasis . | . . . . . Rewire . | . . . . . Trap . | . . . . . Miscellaneous . | . . . . . Route ------- -11/Scrapyard -10/Materials (discovered 2 exits: [*Mat] / [*Min]) -10/Mines -9/Materials -8/Materials (discovered 1 exit: [*Fac]) History --------- Turn | Location | Event 2 | -11/Scrapyard | Discovered new exit (range 16) 68 | -11/Scrapyard | Entered Materials 217 | -10/Materials | Discovered new exit (range 8) 313 | -10/Materials | Build established: Mutant 552 | -10/Materials | Discovered new exit (range 7) 695 | -10/Materials | Entered Mines 733 | -10/Mines | Received a Rocket Launcher from a helpful Derelict 1269 | -10/Mines | Received a Mining Laser from a helpful Derelict 1387 | -10/Mines | Discovered new exit (range 7) 1416 | -10/Mines | Entered Materials 1416 | -9/Materials | Accompanied by 1 ally 1416 | -9/Materials | Evolved 2 slots: Utility x1, Weapon x1 1635 | -9/Materials | Crushed by falling debris 1704 | -9/Materials | Lost 6 parts (2p1n1u2w) 2206 | -9/Materials | Discovered new exit (range 10) 2241 | -9/Materials | Entered another Materials area 2241 | -8/Materials | Evolved 2 slots: Utility x2 2540 | -8/Materials | Build established: Tank 2684 | -8/Materials | Lost 13 parts (2p2n2u7w) 2708 | -8/Materials | Core integrity fell below 50% 2736 | -8/Materials | Discovered new exit (range 16) 2745 | -8/Materials | Core integrity fell below 20% 2747 | -8/Materials | Destroyed by H-55 Commando with Assault Rifle Last Messages --------------- 02647_ U-05 Engineer builds a Wall. 02649_ Penetrated by Slug. 02651_ U-05 Engineer lays Concrete. 02652_ Penetrated by Slug. 02653_ Lgt. Assault Rifle destroyed. 02671_ Slug penetrates Wall. 02688_ Acquired Axe. 02694_ U-05 Engineer builds a Wall. 02695_ Core Shielding destroyed. 02699_ U-05 Engineer builds a Wall. 02715_ Slug penetrates Wall. 02728_ Lrg. Storage Unit destroyed. 02732_ Slug penetrates Wall. 02736_ EXIT=FOUND 02736_ Slug penetrates Wall. 02743_ Acquired 4 matter. 02743_ Slug penetrates Wall. 02744_ Penetrated by Slug. 02747_ W-25 Informer sends out distress signal. 02747_ Penetrated by Slug. Map ----- +----------------------------------------------------+ | ????????????????????????????????????????? | | ????????????????????????????????????????? | | ????????????????????????????????????????? | | ????????????????????????????????????????? | | ????????????????????????????????????????? | | ????????????????????????????????????????? | | ????????????????????????????????????????? | | ????????????????????????????????????????? | | ????????????????????????????????????????? | | ????????????????????????????????????????? | | ????????????????????????????????????????? | | ?????????????????????????####???????????? | | ?????????????????? ????? #???????????? | | ?????????????????# ?????